Workbook

Sheet Anrufprognose
A1: Stunde | B1: Mo1 | C1: Mo2 | D1: Mo3 | E1: Mo4 | H1: Mittelwert
A2: 8 | B2: 7 | C2: 5 | D2: 6 | E2: 7 | H2: =AVERAGE(B2:F2) -> 6.25
A3: =A2+1 -> 9 | B3: 15 | C3: 17 | D3: 17 | E3: 18 | H3: 16.75
A4: 10 | B4: 28 | C4: 35 | D4: 25 | E4: 35 | H4: 30.75
A5: 11 | B5: 46 | C5: 42 | D5: 37 | E5: 29 | H5: 38.5
A6: 12 | B6: 45 | C6: 45 | D6: 42 | E6: 53 | H6: 46.25
A7: 13 | B7: 32 | C7: 29 | D7: 29 | E7: 31 | H7: 30.25
A8: 14 | B8: 35 | C8: 35 | D8: 43 | E8: 37 | H8: 37.5
A9: 15 | B9: 36 | C9: 36 | D9: 38 | E9: 39 | H9: 37.25
A10: 16 | B10: 24 | C10: 20 | D10: 20 | E10: 21 | H10: 21.25
A11: 17 | B11: 6 | C11: 7 | D11: 7 | E11: 6 | H11: 6.5
A12: 18 | B12: 6 | C12: 4 | D12: 6 | E12: 2 | H12: 4.5

Sheet Bedarfsberechnung
A1: ETS [sec] | B1: 600
A2: c_S | B2: 0.5
F3: Erwartete Wartezeit in Abhängigkeit der Agentenzahl [sec]
A5: Stunde | B5: Lambda [h^-1] | C5: Lambda [sec^-1] | D5: a | E5: N_min | F5: EW( N_min ) | G5: EW( N_min+1 ) | H5: EW( N_min+2 ) | I5: EW( N_min+3 )
A6: =Anrufprognose!A2 -> 8 | B6: =Anrufprognose!H2 -> 6.25 | C6: =B6/3600 -> 0.001736111111 | D6: =C6*$B$1 -> 1.041666667 | E6: =ROUNDUP(D6,0) -> 2 | F6: =(1+$B$2^2)/2*($D6/($E6+0))^(SQRT(2*($E6+1+0))-1)/(($E6+0)*(1-($D6/($E6+0))))*$B$1 -> 152.0101013 | G6: =(1+$B$2^2)/2*($D6/($E6+1))^(SQRT(2*($E6+1+1))-1)/(($E6+1)*(1-($D6/($E6+1))))*$B$1 -> 27.68082094 | H6: =(1+$B$2^2)/2*($D6/($E6+2))^(SQRT(2*($E6+1+2))-1)/(($E6+2)*(1-($D6/($E6+2))))*$B$1 -> 6.910314418 | I6: =(1+$B$2^2)/2*($D6/($E6+3))^(SQRT(2*($E6+1+3))-1)/(($E6+3)*(1-($D6/($E6+3))))*$B$1 -> 1.985506306
A7: =Anrufprognose!A3 -> 9 | B7: =Anrufprognose!H3 -> 16.75 | C7: =B7/3600 -> 0.004652777778 | D7: =C7*$B$1 -> 2.791666667 | E7: =ROUNDUP(D7,0) -> 3 | F7: =(1+$B$2^2)/2*($D7/($E7+0))^(SQRT(2*($E7+1+0))-1)/(($E7+0)*(1-($D7/($E7+0))))*$B$1 -> 1578.047567 | G7: =(1+$B$2^2)/2*($D7/($E7+1))^(SQRT(2*($E7+1+1))-1)/(($E7+1)*(1-($D7/($E7+1))))*$B$1 -> 142.5950532 | H7: =(1+$B$2^2)/2*($D7/($E7+2))^(SQRT(2*($E7+1+2))-1)/(($E7+2)*(1-($D7/($E7+2))))*$B$1 -> 40.39118958 | I7: =(1+$B$2^2)/2*($D7/($E7+3))^(SQRT(2*($E7+1+3))-1)/(($E7+3)*(1-($D7/($E7+3))))*$B$1 -> 14.34606473
A8: =Anrufprognose!A4 -> 10 | B8: =Anrufprognose!H4 -> 30.75 | C8: 0.008541666667 | D8: 5.125 | E8: 6 | F8: 278.186808 | G8: 78.49057034 | H8: 30.78075727 | I8: 13.69788249
A9: =Anrufprognose!A5 -> 11 | B9: =Anrufprognose!H5 -> 38.5 | C9: 0.01069444444 | D9: 6.416666667 | E9: 7 | F9: 495.1636905 | G9: 115.8449592 | H9: 44.84142056 | I9: 20.35335105
A10: =Anrufprognose!A6 -> 12 | B10: =Anrufprognose!H6 -> 46.25 | C10: 0.01284722222 | D10: 7.708333333 | E10: 8 | F10: 1139.835806 | G10: 169.5385581 | H10: 62.6205703 | I10: 28.47655472
A11: =Anrufprognose!A7 -> 13 | B11: =Anrufprognose!H7 -> 30.25 | C11: 0.008402777778 | D11: 5.041666667 | E11: 6 | F11: 242.8332203 | G11: 71.5439505 | H11: 28.36503213 | I11: 12.66753376
A12: =Anrufprognose!A8 -> 14 | B12: =Anrufprognose!H8 -> 37.5 | C12: 0.01041666667 | D12: 6.25 | E12: 7 | F12: 355.8901239 | G12: 96.23871363 | H12: 38.44523069 | I12: 17.64868693
A13: =Anrufprognose!A9 -> 15 | B13: =Anrufprognose!H9 -> 37.25 | C13: 0.01034722222 | D13: 6.208333333 | E13: 7 | F13: 330.4607381 | G13: 91.98368485 | H13: 37.00199001 | I13: 17.02914694
A14: =Anrufprognose!A10 -> 16 | B14: =Anrufprognose!H10 -> 21.25 | C14: 0.005902777778 | D14: 3.541666667 | E14: 4 | F14: 628.8809812 | G14: 109.9372552 | H14: 35.9505615 | I14: 14.04408176
A15: =Anrufprognose!A11 -> 17 | B15: =Anrufprognose!H11 -> 6.5 | C15: 0.001805555556 | D15: 1.083333333 | E15: 2 | F15: 168.2159816 | G15: 30.38527784 | H15: 7.629374367 | I15: 2.210237288
A16: =Anrufprognose!A12 -> 18 | B16: =Anrufprognose!H12 -> 4.5 | C16: 0.00125 | D16: 0.75 | E16: 1 | F16: 1125 | G16: 72.39089509 | H16: 13.21374528 | I16: 3.09153949
